fUST/lending_fUST_20250531
["ID","MTS","AMOUNT","RATE_DAILY","PERIOD"]
[363348705,1748687443272,-1624.3958544,0.00021998,7]
[363348706,1748687443281,-193685.91360872,0.00021998,2]
[363348715,1748687444534,-18132.78022168,0.00021998,2]
[363348716,1748687444546,-1000.0,0.00021998,2]
[363348717,1748687444583,-430.0,0.00016438,2]
[363348718,1748687444592,-89.38838655,0.00021998,2]
[363349043,1748688355129,-5000.0,0.00016012,2]
[363349044,1748688355151,-300.0,0.00016436,2]
[363349045,1748688355172,-300.0,0.00016436,2]
[363349046,1748688355192,-5000.0,0.00016437,2]
[363349047,1748688355213,-500.0,0.00016437,2]
[363349048,1748688355236,-298.21592351,0.00016437,2]
[363349049,1748688355260,-500.0,0.00016437,2]
[363349050,1748688355283,-500.0,0.00016437,2]
[363349051,1748688355304,-586.50462087,0.00016437,2]
[363349052,1748688355325,-500.0,0.00016437,2]
[363349054,1748688355346,-500.0,0.00016437,2]
[363349055,1748688355366,-500.0,0.00016437,2]
[363349057,1748688355387,-170.58701076,0.00016437,2]
[363349058,1748688355407,-430.0,0.00016438,2]
[363349059,1748688355428,-430.0,0.00016438,2]
[363349061,1748688355448,-335.77611539,0.00016438,2]
[363349062,1748688355468,-430.0,0.00016438,2]
[363349063,1748688355488,-430.0,0.00016438,2]
[363349065,1748688355508,-430.0,0.00016438,2]
[363349066,1748688355530,-430.0,0.00016438,2]
[363349067,1748688355552,-316.65482973,0.00016438,2]
[363349069,1748688355572,-430.0,0.00016438,2]
[363349070,1748688355592,-500.0,0.00016438,2]
[363349071,1748688355614,-430.0,0.00016438,2]
[363349073,1748688355636,-430.0,0.00016438,2]
[363349074,1748688355657,-430.0,0.00016438,2]
[363349075,1748688355677,-430.0,0.00016438,2]
[363349076,1748688355697,-376.78911354,0.00016438,2]
[363349078,1748688355717,-430.0,0.00016438,2]
[363349079,1748688355738,-430.0,0.00016438,2]
[363349080,1748688355758,-430.0,0.00016438,2]
[363349081,1748688355781,-430.0,0.00016438,2]
[363349082,1748688355802,-430.0,0.00016438,2]
[363349084,1748688355822,-430.0,0.00016438,2]
[363349085,1748688355843,-430.0,0.00016438,2]
[363349087,1748688355864,-430.0,0.00016438,2]
[363349088,1748688355885,-430.0,0.00016438,2]
[363349089,1748688355905,-430.0,0.00016438,2]
[363349090,1748688355926,-430.0,0.00016438,2]
[363349092,1748688355949,-400.0,0.00016438,2]
[363349093,1748688355971,-430.0,0.00016438,2]
[363349094,1748688355993,-430.0,0.00016438,2]
[363349096,1748688356014,-430.0,0.00016438,2]
[363349097,1748688356036,-430.0,0.00016438,2]
[363349098,1748688356057,-430.0,0.00016438,2]
[363349100,1748688356078,-350.0,0.00016438,2]
[363349101,1748688356099,-430.0,0.00016438,2]
[363349102,1748688356121,-430.0,0.00016438,2]
[363349104,1748688356142,-350.0,0.00016438,2]
[363349105,1748688356162,-430.0,0.00016438,2]
[363349106,1748688356182,-430.00320769,0.00016438,2]
[363349109,1748688356382,-430.0,0.00016438,2]
[363349110,1748688356404,-430.0,0.00016438,2]
[363349111,1748688356426,-311.25886417,0.00016438,2]
[363349171,1748688426118,-230.8571669,0.00015801,2]
[363349172,1748688426155,-699.52607676,0.00016273,2]
[363349173,1748688427105,-267.84910451,0.00016273,2]
[363349176,1748688437107,-1350.57208547,0.00016273,2]
[363349177,1748688441209,295804.0,0.00024658,120]
[363349179,1748688445081,-1252.85994311,0.00016273,2]
[363349180,1748688447089,-1429.19279015,0.00016273,2]
[363349181,1748688447112,-152.24687631,0.00016338,2]
[363349182,1748688447134,-300.0,0.00016437,2]
[363349183,1748688447155,-118.74113583,0.00016438,2]
[363349184,1748688447180,-405.50696264,0.00016438,2]
[363349185,1748688447203,-7.06667307,0.00016438,2]
[363349186,1748688447231,-422.93332693,0.00016438,2]
[363349187,1748688447253,-430.0,0.00016438,2]
[363349188,1748688447274,-430.0,0.00016438,2]
[363349189,1748688447296,-164.69206621,0.00016438,2]
[363349190,1748688453113,-265.30793379,0.00016438,2]
[363349191,1748688453136,-430.0,0.00016438,2]
[363349192,1748688453162,-430.0,0.00016438,2]
[363349193,1748688453185,-500.0,0.00016438,2]
[363349194,1748688453209,-589.32,0.00016438,2]
[363349195,1748688453233,-430.0,0.00016438,2]
[363349196,1748688453261,-430.0,0.00016438,2]
[363349197,1748688453284,-430.0,0.00016438,2]
[363349198,1748688453308,-670.94,0.00016438,2]
[363349199,1748688453332,-430.0,0.00016438,2]
[363349200,1748688453354,-430.0,0.00016438,2]
[363349201,1748688453379,-430.0,0.00016438,2]
[363349202,1748688453400,-430.0,0.00016438,2]
[363349203,1748688453424,-551.02,0.00016438,2]
[363349204,1748688453446,-430.0,0.00016438,2]
[363349205,1748688453468,-400.0,0.00016438,2]
[363349206,1748688453490,-430.0,0.00016438,2]
[363349207,1748688453512,-430.0,0.00016438,2]
[363349208,1748688453536,-430.0,0.00016438,2]
[363349209,1748688453558,-430.0,0.00016438,2]
[363349210,1748688453580,-430.0,0.00016438,2]
[363349211,1748688453601,-431.02619174,0.00016438,2]
[363349212,1748688453624,-430.0,0.00016438,2]
[363349213,1748688453648,-430.0,0.00016438,2]
[363349214,1748688453671,-430.0,0.00016438,2]
[363349215,1748688453692,-400.0,0.00016438,2]
[363349216,1748688453713,-430.0,0.00016438,2]
[363349217,1748688453736,-430.0,0.00016438,2]
[363349218,1748688453760,-430.0,0.00016438,2]
[363349219,1748688453781,-430.0,0.00016438,2]
[363349220,1748688453804,-430.0,0.00016438,2]
[363349221,1748688453827,-430.0,0.00016438,2]
[363349222,1748688453849,-430.0,0.00016438,2]
[363349223,1748688453873,-430.0,0.00016438,2]
[363349224,1748688453896,-430.0,0.00016438,2]
[363349225,1748688453919,-430.0,0.00016438,2]
[363349226,1748688453942,-435.12198118,0.00016438,2]
[363349227,1748688453963,-281.13052397,0.00016438,2]
[363349228,1748688453991,-430.0,0.00016438,2]
[363349229,1748688454015,-430.0,0.00016438,2]
[363349230,1748688454038,-430.0,0.00016438,2]
[363349231,1748688454060,-491.59981371,0.00016438,2]
[363349232,1748688454082,-430.0,0.00016438,2]
[363349233,1748688454104,-430.0,0.00016438,2]
[363349234,1748688454127,-430.0,0.00016438,2]
[363349235,1748688454149,-430.0,0.00016438,2]
[363349236,1748688454172,-430.0,0.00016438,2]
[363349237,1748688454195,-430.0,0.00016438,2]
[363349238,1748688454216,-430.0,0.00016438,2]
[363349239,1748688454238,-430.0,0.00016438,2]
[363349240,1748688454260,-430.0,0.00016438,2]
[363349241,1748688454282,-430.0,0.00016438,2]
[363349242,1748688454305,-430.0,0.00016438,2]
[363349243,1748688454327,-430.0,0.00016438,2]
[363349244,1748688454351,-430.0,0.00016438,2]
[363349245,1748688454375,-430.0,0.00016438,2]
[363349246,1748688454397,-430.0,0.00016438,2]
[363349247,1748688454421,-430.0,0.00016438,2]
[363349248,1748688454442,-331.12510519,0.00016438,2]
[363349251,1748688549132,-300.0,0.00015689,2]
[363349252,1748688549154,-24385.99012957,0.0001569,2]
[363349254,1748688559112,-490.0,0.0001569,2]
[363349291,1748688632796,-24.00987043,0.0001569,2]
[363349292,1748688632806,-286.3075416,0.00016338,2]
[363349293,1748688632817,-152.24687626,0.00016338,2]
[363349294,1748688632827,-300.0,0.00016437,2]
[363349295,1748688632837,-430.0,0.00016438,2]
[363349296,1748688632847,-430.0,0.00016438,2]
[363349297,1748688632856,-430.0,0.00016438,2]
[363349298,1748688632865,-430.0,0.00016438,2]
[363349299,1748688632875,-430.0,0.00016438,2]
[363349300,1748688632885,-408.13523293,0.00016438,2]
[363349301,1748688632894,-430.0,0.00016438,2]
[363349302,1748688632904,-430.0,0.00016438,2]
[363349303,1748688632914,-430.0,0.00016438,2]
[363349304,1748688632925,-430.0,0.00016438,2]
[363349305,1748688632934,-458.35079593,0.00016438,2]
[363349306,1748688632944,-430.0,0.00016438,2]
[363349307,1748688632953,-781.02,0.00016438,2]
[363349308,1748688632963,-430.0,0.00016438,2]
[363349309,1748688632973,-3395.6,0.00016438,2]
[363349310,1748688632982,-450.0,0.00016438,2]
[363349311,1748688632993,-430.0,0.00016438,2]
[363349312,1748688633003,-500.0,0.00016438,2]
[363349313,1748688633013,-491.19,0.00016438,2]
[363349314,1748688633024,-420.56,0.00016438,2]
[363349315,1748688633036,-430.0,0.00016438,2]
[363349316,1748688633050,-430.0,0.00016438,2]
[363349317,1748688633060,-430.0,0.00016438,2]
[363349318,1748688633071,-430.0,0.00016438,2]
[363349319,1748688633082,-430.0,0.00016438,2]
[363349320,1748688633093,-975.01,0.00016438,2]
[363349321,1748688633104,-430.0,0.00016438,2]
[363349322,1748688633113,-430.0,0.00016438,2]
[363349323,1748688633125,-430.0,0.00016438,2]
[363349324,1748688633135,-430.0,0.00016438,2]
[363349325,1748688633145,-430.0,0.00016438,2]
[363349326,1748688633155,-812.68,0.00016438,2]
[363349327,1748688633165,-430.0,0.00016438,2]
[363349328,1748688633175,-430.0,0.00016438,2]
[363349329,1748688633184,-430.0,0.00016438,2]
[363349330,1748688633195,-769.45,0.00016438,2]
[363349331,1748688633206,-430.0,0.00016438,2]
[363349332,1748688633216,-430.0,0.00016438,2]
[363349333,1748688633226,-430.0,0.00016438,2]
[363349334,1748688633236,-430.0,0.00016438,2]
[363349335,1748688633246,-430.0,0.00016438,2]
[363349336,1748688633256,-430.0,0.00016438,2]
[363349337,1748688633271,-430.0,0.00016438,2]
[363349338,1748688633281,-430.0,0.00016438,2]
[363349339,1748688633292,-430.0,0.00016438,2]
[363349340,1748688633303,-430.0,0.00016438,2]
[363349341,1748688633314,-430.0,0.00016438,2]
[363349342,1748688633324,-430.0,0.00016438,2]
[363349343,1748688633334,-430.0,0.00016438,2]
[363349344,1748688633345,-430.0,0.00016438,2]
[363349345,1748688633354,-430.0,0.00016438,2]
[363349346,1748688633364,-500.0,0.00016438,2]
[363349347,1748688633374,-430.0,0.00016438,2]
[363349348,1748688633534,-525.43150531,0.00016438,2]
[363349349,1748688633548,-570.0,0.00016438,2]
[363349350,1748688633558,-430.0,0.00016438,2]
[363349351,1748688633568,-430.0,0.00016438,2]
[363349352,1748688633578,-430.0,0.00016438,2]
[363349353,1748688633588,-430.0,0.00016438,2]
[363349354,1748688633597,-430.0,0.00016438,2]
[363349355,1748688633607,-430.0,0.00016438,2]
[363349356,1748688633617,-442.68339239,0.00016438,2]
[363349357,1748688633627,-430.0,0.00016438,2]
[363349358,1748688633637,-155.0,0.00016438,2]
[363349359,1748688633646,-430.0,0.00016438,2]
[363349360,1748688633656,-370.0,0.00016438,2]
[363349361,1748688633666,-430.0,0.00016438,2]
[363349362,1748688633676,-430.0,0.00016438,2]
[363349363,1748688633686,-430.0,0.00016438,2]
[363349364,1748688633696,-430.0,0.00016438,2]
[363349365,1748688633705,-471.21767494,0.00016438,2]
[363349366,1748688633715,-430.0,0.00016438,2]
[363349367,1748688633725,-430.0,0.00016438,2]
[363349368,1748688633735,-430.0,0.00016438,2]
[363349369,1748688633745,-197.60489481,0.00016438,2]
[363349370,1748688633755,-430.0,0.00016438,2]
[363349371,1748688633767,-430.0,0.00016438,2]
[363349372,1748688633777,-430.0,0.00016438,2]
[363349373,1748688633787,-430.0,0.00016438,2]
[363349374,1748688633796,-441.29,0.00016438,2]
[363349375,1748688633806,-430.0,0.00016438,2]
[363349376,1748688633816,-430.0,0.00016438,2]
[363349377,1748688633826,-430.0,0.00016438,2]
[363349378,1748688633837,-475.52,0.00016438,2]
[363349379,1748688633847,-430.0,0.00016438,2]
[363349380,1748688633858,-430.0,0.00016438,2]
[363349381,1748688633870,-434.8860439,0.00016438,2]
[363349382,1748688633881,-430.0,0.00016438,2]
[363349383,1748688633891,-430.0,0.00016438,2]
[363349384,1748688633901,-430.0,0.00016438,2]
[363349385,1748688633911,-463.45732558,0.00016438,2]
[363349386,1748688633921,-430.0,0.00016438,2]
[363349387,1748688633931,-430.0,0.00016438,2]
[363349388,1748688633942,-430.0,0.00016438,2]
[363349389,1748688633951,-430.0,0.00016438,2]
[363349390,1748688633962,-430.0,0.00016438,2]
[363349391,1748688633971,-430.0,0.00016438,2]
[363349392,1748688633981,-430.0,0.00016438,2]
[363349393,1748688633991,-430.0,0.00016438,2]
[363349394,1748688634002,-430.0,0.00016438,2]
[363349395,1748688634011,-430.0,0.00016438,2]
[363349396,1748688634023,-430.0,0.00016438,2]
[363349397,1748688634035,-430.0,0.00016438,2]
[363349398,1748688634046,-542.14,0.00016438,2]
[363349399,1748688634055,-430.0,0.00016438,2]
[363349400,1748688634065,-873.22,0.00016438,2]
[363349401,1748688634075,-430.0,0.00016438,2]
[363349402,1748688634085,-430.0,0.00016438,2]
[363349403,1748688634095,-379.36,0.00016438,2]
[363349404,1748688634104,-430.0,0.00016438,2]
[363349405,1748688634113,-430.0,0.00016438,2]
[363349406,1748688634124,-430.0,0.00016438,2]
[363349407,1748688634134,-430.0,0.00016438,2]
[363349408,1748688634144,-430.0,0.00016438,2]
[363349409,1748688634153,-430.0,0.00016438,2]
[363349410,1748688634164,-413.3305209,0.00016438,2]
[363349411,1748688634174,-562.7,0.00016438,2]
[363349412,1748688634184,-168.0,0.00016438,3]
[363349413,1748688634194,-185.62077897,0.00016711,2]
[363349414,1748688634204,-500.0,0.00016711,2]
[363349415,1748688634214,-500.0,0.00016711,2]
[363349416,1748688634223,-500.0,0.00016711,2]
[363349417,1748688634232,-443.61327706,0.00016711,2]
[363349418,1748688634242,-264.07918391,0.00016711,2]
[363349419,1748688634252,-430.0,0.00016712,2]
[363349420,1748688634263,-430.0,0.00016712,2]
[363349421,1748688634272,-430.0,0.00016712,2]
[363349422,1748688634282,-430.0,0.00016712,2]
[363349423,1748688634293,-430.0,0.00016712,2]
[363349424,1748688634303,-430.0,0.00016712,2]
[363349425,1748688634313,-430.0,0.00016712,2]
[363349426,1748688634324,-470.0,0.00016712,2]
[363349427,1748688634334,-430.0,0.00016712,2]
[363349428,1748688634344,-430.0,0.00016712,2]
[363349429,1748688634354,-430.0,0.00016712,2]
[363349430,1748688634365,-535.22800191,0.00016712,2]
[363349431,1748688634375,-781.02,0.00016712,2]
[363349432,1748688634385,-3395.6,0.00016712,2]
[363349433,1748688634396,-430.0,0.00016712,2]
[363349434,1748688634406,-430.0,0.00016712,2]
[363349435,1748688634416,-430.0,0.00016712,2]
[363349436,1748688634426,-430.0,0.00016712,2]
[363349437,1748688634436,-975.01,0.00016712,2]
[363349438,1748688634447,-315.06,0.00016712,2]
[363349439,1748688634457,-430.0,0.00016712,2]
[363349440,1748688634467,-430.0,0.00016712,2]
[363349441,1748688634477,-430.0,0.00016712,2]
[363349442,1748688634487,-812.68,0.00016712,2]
[363349443,1748688634499,-558.16242851,0.00016712,2]
[363349444,1748688634510,-769.45,0.00016712,2]
[363349445,1748688634522,-430.0,0.00016712,2]
[363349446,1748688634532,-430.0,0.00016712,2]
[363349447,1748688634542,-430.0,0.00016712,2]
[363349448,1748688634552,-430.0,0.00016712,2]
[363349449,1748688634562,-430.0,0.00016712,2]
[363349450,1748688634573,-430.0,0.00016712,2]
[363349451,1748688634582,-430.0,0.00016712,2]
[363349452,1748688634592,-430.0,0.00016712,2]
[363349453,1748688634602,-430.0,0.00016712,2]
[363349454,1748688634612,-430.0,0.00016712,2]
[363349455,1748688634622,-426.16496433,0.00016712,2]
[363349456,1748688634631,-430.0,0.00016712,2]
[363349457,1748688634642,-430.0,0.00016712,2]
[363349458,1748688634652,-430.0,0.00016712,2]
[363349459,1748688634661,-430.0,0.00016712,2]
[363349460,1748688634671,-430.0,0.00016712,2]
[363349461,1748688634681,-430.0,0.00016712,2]
[363349462,1748688634691,-430.0,0.00016712,2]
[363349463,1748688634700,-483.81,0.00016712,2]
[363349464,1748688634709,-430.0,0.00016712,2]
[363349465,1748688634719,-430.0,0.00016712,2]
[363349466,1748688634727,-430.0,0.00016712,2]
[363349467,1748688634737,-430.0,0.00016712,2]
[363349468,1748688634747,-441.29,0.00016712,2]
[363349469,1748688634756,-430.0,0.00016712,2]
[363349470,1748688634766,-423.86641696,0.00016712,2]
[363349471,1748688634776,-430.0,0.00016712,2]
[363349472,1748688634785,-430.0,0.00016712,2]
[363349473,1748688634795,-430.0,0.00016712,2]
[363349474,1748688634804,-430.0,0.00016712,2]
[363349475,1748688634814,-231.4395295,0.00016712,2]
[363349476,1748688634824,-282.20404482,0.00016712,2]
[363349477,1748688634833,-430.0,0.00016712,2]
[363349478,1748688634843,-430.0,0.00016712,2]
[363349479,1748688634853,-430.0,0.00016712,2]
[363349480,1748688634865,-542.14,0.00016712,2]
[363349481,1748688634877,-873.22,0.00016712,2]
[363349482,1748688634893,-376.98025834,0.00016712,2]
[363349483,1748688634903,-430.0,0.00016712,2]
[363349484,1748688634913,-430.0,0.00016712,2]
[363349485,1748688634923,-430.0,0.00016712,2]
[363349486,1748688634933,-430.0,0.00016712,2]
[363349487,1748688634942,-562.7,0.00016712,2]
[363349488,1748688634952,-3079.44851213,0.000169,2]
[363349489,1748688634962,-151.0,0.00016959,2]
[363349490,1748688634972,-151.0,0.00016959,2]
[363349491,1748688634982,-430.0,0.00016986,2]
[363349492,1748688634992,-430.0,0.00016986,2]
[363349493,1748688635003,-430.0,0.00016986,2]
[363349494,1748688635014,-448.12559308,0.00016986,2]
[363349495,1748688635024,-430.0,0.00016986,2]
[363349496,1748688635034,-430.0,0.00016986,2]
[363349497,1748688635047,-781.02,0.00016986,2]
[363349498,1748688635058,-3395.6,0.00016986,2]
[363349499,1748688635067,-430.0,0.00016986,2]
[363349500,1748688635077,-430.0,0.00016986,2]
[363349501,1748688635094,-430.0,0.00016986,2]
[363349502,1748688635104,-975.01,0.00016986,2]
[363349503,1748688635116,-430.0,0.00016986,2]
[363349504,1748688635127,-430.0,0.00016986,2]
[363349505,1748688635138,-812.68,0.00016986,2]
[363349506,1748688635149,-769.45,0.00016986,2]
[363349507,1748688635160,-430.0,0.00016986,2]
[363349508,1748688635172,-430.0,0.00016986,2]
[363349509,1748688635184,-430.0,0.00016986,2]
[363349510,1748688635195,-430.0,0.00016986,2]
[363349511,1748688635205,-430.0,0.00016986,2]
[363349512,1748688635214,-430.0,0.00016986,2]
[363349513,1748688635224,-430.0,0.00016986,2]
[363349514,1748688635234,-430.0,0.00016986,2]
[363349515,1748688635244,-430.0,0.00016986,2]
[363349516,1748688635254,-430.0,0.00016986,2]
[363349517,1748688635264,-430.0,0.00016986,2]
[363349518,1748688635274,-430.0,0.00016986,2]
[363349519,1748688635284,-441.29,0.00016986,2]
[363349520,1748688635293,-430.0,0.00016986,2]
[363349521,1748688635304,-430.0,0.00016986,2]
[363349522,1748688635313,-430.0,0.00016986,2]
[363349523,1748688635324,-430.0,0.00016986,2]
[363349524,1748688635333,-542.14,0.00016986,2]
[363349525,1748688635343,-873.22,0.00016986,2]
[363349526,1748688635353,-430.0,0.00016986,2]
[363349527,1748688635362,-430.0,0.00016986,2]
[363349528,1748688635372,-430.0,0.00016986,2]
[363349529,1748688635382,-562.7,0.00016986,2]
[363349530,1748688635391,-151.0,0.00016986,2]
[363349531,1748688635401,-151.0,0.00016986,2]
[363349532,1748688635411,-198.0,0.00017014,2]
[363349533,1748688635421,-198.0,0.00017014,2]
[363349534,1748688635430,-1000.0,0.00017068,2]
[363349535,1748688635440,-3079.448512,0.00017176,2]
[363349536,1748688635450,-500.0,0.000172,2]
[363349537,1748688635460,-500.0,0.000172,2]
[363349538,1748688635470,-500.0,0.00017239,2]
[363349539,1748688635480,-500.0,0.00017239,2]
[363349540,1748688635489,-430.0,0.00017259,2]
[363349541,1748688635499,-458.13971711,0.00017259,2]
[363349542,1748688635509,-430.0,0.00017259,2]
[363349543,1748688635520,-398.68629981,0.00017259,2]
[363349544,1748688635529,-430.0,0.00017259,2]
[363349545,1748688635539,-400.81676059,0.00017259,2]
[363349546,1748688635549,-400.0,0.00017259,2]
[363349547,1748688635560,-400.0,0.00017259,2]
[363349548,1748688635570,-400.0,0.00017259,2]
[363349549,1748688635581,-400.0,0.00017259,2]
[363349550,1748688635591,-430.0,0.00017259,2]
[363349551,1748688635601,-407.79337554,0.00017259,2]
[363349552,1748688635611,-555.07907724,0.00017259,2]
[363349553,1748688635622,-430.0,0.00017259,2]
[363349554,1748688635632,-430.0,0.00017259,2]
[363349555,1748688635642,-430.0,0.00017259,2]
[363349556,1748688635652,-430.0,0.00017259,2]
[363349557,1748688635662,-450.0,0.00017259,2]
[363349558,1748688635673,-450.0,0.00017259,2]
[363349559,1748688635683,-451.57802046,0.00017259,2]
[363349560,1748688635693,-430.0,0.00017259,2]
[363349561,1748688635703,-430.0,0.00017259,2]
[363349562,1748688635713,-430.0,0.00017259,2]
[363349563,1748688635722,-430.35753876,0.00017259,2]
[363349564,1748688635732,-400.0,0.00017259,2]
[363349565,1748688635742,-400.0,0.00017259,2]
[363349566,1748688635752,-400.0,0.00017259,2]
[363349567,1748688635762,-430.0,0.00017259,2]
[363349568,1748688635777,-415.22696666,0.00017259,2]
[363349569,1748688635787,-430.0,0.00017259,2]
[363349570,1748688635797,-430.0,0.00017259,2]
[363349571,1748688635807,-430.0,0.00017259,2]
[363349572,1748688635817,-430.0,0.00017259,2]
[363349573,1748688635827,-400.0,0.00017259,2]
[363349574,1748688635837,-400.0,0.00017259,2]
[363349575,1748688635847,-456.96871785,0.00017259,2]
[363349576,1748688635856,-430.0,0.00017259,2]
[363349577,1748688635865,-430.0,0.00017259,2]
[363349578,1748688635875,-430.0,0.00017259,2]
[363349579,1748688635885,-430.0,0.00017259,2]
[363349580,1748688635895,-430.0,0.00017259,2]
[363349581,1748688635905,-430.0,0.00017259,2]
[363349582,1748688635915,-430.0,0.00017259,2]
[363349583,1748688635925,-430.0,0.00017259,2]
[363349584,1748688635934,-430.0,0.00017259,2]
[363349585,1748688635944,-430.0,0.00017259,2]
[363349586,1748688635954,-430.0,0.00017259,2]
[363349587,1748688635964,-430.0,0.00017259,2]
[363349588,1748688635974,-430.0,0.00017259,2]
[363349589,1748688635983,-400.0,0.00017259,2]
[363349590,1748688635993,-430.0,0.00017259,2]
[363349591,1748688636003,-430.0,0.00017259,2]
[363349592,1748688636012,-430.0,0.00017259,2]
[363349593,1748688636025,-430.0,0.00017259,2]
[363349594,1748688636035,-430.0,0.00017259,2]
[363349595,1748688636049,-430.0,0.00017259,2]
[363349596,1748688636059,-430.0,0.00017259,2]
[363349597,1748688636098,-450.0,0.00017259,2]
[363349598,1748688636108,-450.0,0.00017259,2]
[363349599,1748688636119,-430.0,0.00017259,2]
[363349600,1748688636128,-430.0,0.00017259,2]
[363349601,1748688636138,-430.0,0.00017259,2]
[363349602,1748688636148,-430.0,0.00017259,2]
[363349603,1748688636158,-210.38393613,0.00017259,2]
[363349604,1748688636167,-535.7,0.00017259,2]
[363349605,1748688636177,-430.0,0.00017259,2]
[363349606,1748688636187,-430.0,0.00017259,2]
[363349607,1748688636196,-430.0,0.00017259,2]
[363349608,1748688636206,-430.0,0.00017259,2]
[363349609,1748688636216,-430.0,0.00017259,2]
[363349610,1748688636225,-430.0,0.00017259,2]
[363349611,1748688636235,-430.0,0.00017259,2]
[363349612,1748688636244,-430.0,0.00017259,2]
[363349613,1748688636254,-430.0,0.00017259,2]
[363349614,1748688636264,-430.0,0.00017259,2]
[363349615,1748688636275,-440.69313988,0.00017259,2]
[363349616,1748688636284,-430.0,0.00017259,2]
[363349617,1748688636294,-430.0,0.00017259,2]
[363349618,1748688636303,-430.0,0.0001726,2]
[363349619,1748688636313,-214.94,0.0001726,2]
[363349620,1748688636322,-781.02,0.0001726,2]
[363349621,1748688636332,-3395.6,0.0001726,2]
[363349622,1748688636342,-430.0,0.0001726,2]
[363349623,1748688636351,-975.01,0.0001726,2]
[363349624,1748688636361,-430.0,0.0001726,2]
[363349625,1748688636371,-430.0,0.0001726,2]
[363349626,1748688636380,-812.68,0.0001726,2]
[363349627,1748688636390,-769.45,0.0001726,2]
[363349628,1748688636399,-430.0,0.0001726,2]
[363349629,1748688636409,-430.0,0.0001726,2]
[363349630,1748688636419,-430.0,0.0001726,2]
[363349631,1748688636429,-430.0,0.0001726,2]
[363349632,1748688636439,-430.0,0.0001726,2]
[363349633,1748688636450,-430.0,0.0001726,2]
[363349634,1748688636459,-279.58166395,0.0001726,2]
[363349635,1748688636469,-430.0,0.0001726,2]
[363349636,1748688636478,-430.0,0.0001726,2]
[363349637,1748688636488,-430.0,0.0001726,2]
[363349638,1748688636498,-430.0,0.0001726,2]
[363349639,1748688636508,-441.29,0.0001726,2]
[363349640,1748688636518,-430.0,0.0001726,2]
[363349641,1748688636528,-430.0,0.0001726,2]
[363349642,1748688636537,-463.08068349,0.0001726,2]
[363349643,1748688636547,-542.14,0.0001726,2]
[363349644,1748688636557,-873.22,0.0001726,2]
[363349645,1748688636567,-430.0,0.0001726,2]
[363349646,1748688636577,-430.0,0.0001726,2]
[363349647,1748688636587,-562.7,0.0001726,2]
[363349648,1748688636601,-500.0,0.00017381,2]
[363349649,1748688636611,-500.0,0.00017433,2]
[363349650,1748688636621,-500.0,0.00017433,2]
[363349651,1748688636631,-500.0,0.00017433,2]
[363349652,1748688636641,-420.59571662,0.00017433,2]